[Event "Live Chess"]
[Site "Chess.com"]
[Date "2023.05.21"]
[Round "-"]
[White "raminguy"]
[Black "Daniel_Gliddon_FA"]
[Result "1-0"]
[WhiteElo "1960"]
[BlackElo "1228"]
[TimeControl "300"]
[EndTime "16:09:23 PDT"]
[Termination "raminguy won on time"]

1. d4 {[%clk 0:04:58.1]} 1... Nf6 {[%clk 0:04:55.9]} 2. Nc3 {[%clk 0:04:57.3]}
2... g6 {[%clk 0:04:54.7]} 3. e4 {[%clk 0:04:56.2]} 3... Bg7 {[%clk 0:04:53.7]}
4. e5 {[%clk 0:04:55.4]} 4... Ng8 {[%clk 0:04:51.2]} 5. Bf4 {[%clk 0:04:52.1]}
5... Nc6 {[%clk 0:04:48.3]} 6. Qd2 {[%clk 0:04:48.8]} 6... d6 {[%clk 0:04:47.2]}
7. exd6 {[%clk 0:04:43.8]} 7... exd6 {[%clk 0:04:44.8]} 8. Nf3 {[%clk 0:04:42]}
8... Qf6 {[%clk 0:04:37.4]} 9. Bg5 {[%clk 0:04:33.9]} 9... Qf5 {[%clk
0:04:24.6]} 10. O-O-O {[%clk 0:04:19.2]} 10... Nxd4 {[%clk 0:04:18.6]} 11. Nxd4
{[%clk 0:04:01.9]} 11... Bxd4 {[%clk 0:04:16]} 12. Qxd4 {[%clk 0:03:41.4]} 12...
Qxg5+ {[%clk 0:04:14.5]} 13. f4 {[%clk 0:03:39.3]} 13... Qf6 {[%clk 0:04:12.8]}
14. Re1+ {[%clk 0:03:35.5]} 14... Be6 {[%clk 0:04:03.3]} 15. Qb4 {[%clk
0:02:57]} 15... O-O-O {[%clk 0:03:54.7]} 16. g3 {[%clk 0:02:48.9]} 16... Ne7
{[%clk 0:03:40]} 17. Bg2 {[%clk 0:02:46.5]} 17... Rhe8 {[%clk 0:03:09.2]} 18.
Bxb7+ {[%clk 0:02:42.4]} 18... Kd7 {[%clk 0:02:53]} 19. Qa4+ {[%clk 0:02:40.1]}
19... c6 {[%clk 0:02:45.5]} 20. Qxa7 {[%clk 0:02:38.9]} 20... Rb8 {[%clk
0:02:43]} 21. Ba6+ {[%clk 0:02:30.5]} 21... Kd8 {[%clk 0:02:30.6]} 22. Qxb8+
{[%clk 0:02:27.6]} 22... Bc8 {[%clk 0:02:28.1]} 23. Qxd6+ {[%clk 0:02:23.9]}
23... Qxd6 {[%clk 0:02:13.1]} 24. Rd1 {[%clk 0:02:23.2]} 24... Qxd1+ {[%clk
0:02:11]} 25. Rxd1+ {[%clk 0:02:23.1]} 25... Kc7 {[%clk 0:02:07]} 26. Bxc8
{[%clk 0:02:20.7]} 26... Rxc8 {[%clk 0:02:03.7]} 27. Ne4 {[%clk 0:02:16.7]}
27... Nd5 {[%clk 0:01:59.7]} 28. a4 {[%clk 0:02:03.4]} 28... Ra8 {[%clk
0:01:53.5]} 29. b3 {[%clk 0:01:57.5]} 29... Re8 {[%clk 0:01:31.4]} 30. Nc5
{[%clk 0:01:47.4]} 30... Re2 {[%clk 0:01:25.4]} 31. Rd2 {[%clk 0:01:38.5]} 31...
Re1+ {[%clk 0:01:23.6]} 32. Kb2 {[%clk 0:01:36.7]} 32... Re3 {[%clk 0:01:22]}
33. a5 {[%clk 0:01:27.5]} 33... Nb4 {[%clk 0:01:10.2]} 34. Rd7+ {[%clk
0:01:19.6]} 34... Kc8 {[%clk 0:01:06.6]} 35. Rxf7 {[%clk 0:01:11.2]} 35... Re2
{[%clk 0:01:05.3]} 36. Rf8+ {[%clk 0:01:01.6]} 36... Kc7 {[%clk 0:01:02.4]} 37.
Rf7+ {[%clk 0:00:43]} 37... Kc8 {[%clk 0:00:57.7]} 38. Kc3 {[%clk 0:00:32]}
38... Nd5+ {[%clk 0:00:51.2]} 39. Kd3 {[%clk 0:00:27.8]} 39... Re3+ {[%clk
0:00:49.6]} 40. Kd2 {[%clk 0:00:25.8]} 40... Re7 {[%clk 0:00:42.9]} 41. Rxe7
{[%clk 0:00:24.2]} 41... Nxe7 {[%clk 0:00:41]} 42. c4 {[%clk 0:00:22.3]} 42...
Nf5 {[%clk 0:00:39.3]} 43. b4 {[%clk 0:00:20.6]} 43... Nd4 {[%clk 0:00:37.6]}
44. Ne4 {[%clk 0:00:17.6]} 44... Nf3+ {[%clk 0:00:35.8]} 45. Kc3 {[%clk
0:00:16.2]} 45... Nxh2 {[%clk 0:00:34.1]} 46. Nf6 {[%clk 0:00:15.2]} 46... h5
{[%clk 0:00:29.9]} 47. Ne4 {[%clk 0:00:13.3]} 47... Nf3 {[%clk 0:00:28.1]} 48.
b5 {[%clk 0:00:12.3]} 48... Ne1 {[%clk 0:00:24.4]} 49. a6 {[%clk 0:00:10.9]}
49... Nf3 {[%clk 0:00:23.1]} 50. b6 {[%clk 0:00:10.2]} 50... Kb8 {[%clk
0:00:19.3]} 51. a7+ {[%clk 0:00:09.5]} 51... Ka8 {[%clk 0:00:18.2]} 52. Nc5
{[%clk 0:00:09.1]} 52... Nd4 {[%clk 0:00:14.8]} 53. Nd7 {[%clk 0:00:08.2]} 53...
Ne6 {[%clk 0:00:11.7]} 54. Kb4 {[%clk 0:00:06.9]} 54... Nd8 {[%clk 0:00:09.5]}
55. Ka5 {[%clk 0:00:06.2]} 55... Nb7+ {[%clk 0:00:08.4]} 56. Ka6 {[%clk
0:00:05.5]} 56... Nc5+ {[%clk 0:00:07.1]} 57. Nxc5 {[%clk 0:00:04.6]} 1-0

[Event "Live Chess"]
[Site "Chess.com"]
[Date "2023.05.21"]
[Round "-"]
[White "birdseed45"]
[Black "KeithArkell"]
[Result "0-1"]
[WhiteElo "1865"]
[BlackElo "2611"]
[TimeControl "300"]
[EndTime "16:09:27 PDT"]
[Termination "KeithArkell won by resignation"]

1. e4 {[%clk 0:04:57]} 1... c6 {[%clk 0:04:59.4]} 2. d4 {[%clk 0:04:53.2]} 2...
d5 {[%clk 0:04:58.6]} 3. Nc3 {[%clk 0:04:50.9]} 3... dxe4 {[%clk 0:04:57.6]} 4.
Nxe4 {[%clk 0:04:50.8]} 4... Nd7 {[%clk 0:04:56.8]} 5. Nf3 {[%clk 0:04:49.7]}
5... Ngf6 {[%clk 0:04:56]} 6. Bd3 {[%clk 0:04:47.5]} 6... Nxe4 {[%clk
0:04:54.8]} 7. Bxe4 {[%clk 0:04:47.4]} 7... Nf6 {[%clk 0:04:54.1]} 8. Bd3 {[%clk
0:04:42]} 8... Bg4 {[%clk 0:04:53.1]} 9. c3 {[%clk 0:04:38.7]} 9... e6 {[%clk
0:04:52.4]} 10. O-O {[%clk 0:04:36.9]} 10... Be7 {[%clk 0:04:51.7]} 11. h3
{[%clk 0:04:36.1]} 11... Bxf3 {[%clk 0:04:50.8]} 12. Qxf3 {[%clk 0:04:35.5]}
12... O-O {[%clk 0:04:50]} 13. Bg5 {[%clk 0:04:33.4]} 13... Qd5 {[%clk
0:04:47.8]} 14. Bh4 {[%clk 0:04:29.2]} 14... Qxf3 {[%clk 0:04:46]} 15. gxf3
{[%clk 0:04:29.1]} 15... Nd5 {[%clk 0:04:45.1]} 16. Bxe7 {[%clk 0:04:24.9]}
16... Nxe7 {[%clk 0:04:45]} 17. Kh2 {[%clk 0:04:23.5]} 17... Rfd8 {[%clk
0:04:44]} 18. Rg1 {[%clk 0:04:22.6]} 18... c5 {[%clk 0:04:42.7]} 19. Rad1 {[%clk
0:04:14.3]} 19... cxd4 {[%clk 0:04:41.9]} 20. cxd4 {[%clk 0:04:12.7]} 20... Rd6
{[%clk 0:04:40.4]} 21. Be4 {[%clk 0:04:10.8]} 21... Rb8 {[%clk 0:04:36.1]} 22.
Rg5 {[%clk 0:04:06.5]} 22... b6 {[%clk 0:04:34.3]} 23. Rdg1 {[%clk 0:04:01.7]}
23... g6 {[%clk 0:04:32.9]} 24. Rd1 {[%clk 0:04:00]} 24... Rbd8 {[%clk
0:04:31.9]} 25. Rb5 {[%clk 0:03:44.1]} 25... Rxd4 {[%clk 0:04:29.5]} 26. Rc1
{[%clk 0:03:42.2]} 26... Rd2 {[%clk 0:04:25.8]} 27. Kg2 {[%clk 0:03:40.1]} 27...
R8d7 {[%clk 0:04:23.6]} 28. Rb3 {[%clk 0:03:36.3]} 28... Kg7 {[%clk 0:04:22.6]}
29. Ra3 {[%clk 0:03:22.3]} 29... Kf6 {[%clk 0:04:20.4]} 30. Rb3 {[%clk
0:03:20.1]} 30... Nf5 {[%clk 0:04:18.3]} 31. Rc4 {[%clk 0:03:12.4]} 31... Nd6
{[%clk 0:04:14.9]} 32. Ra4 {[%clk 0:03:09.4]} 32... Nxe4 {[%clk 0:04:13.7]} 33.
fxe4 {[%clk 0:03:06.8]} 33... Rc2 {[%clk 0:04:12.8]} 34. Rba3 {[%clk 0:03:03]}
34... Rxb2 {[%clk 0:04:10.2]} 35. Rxa7 {[%clk 0:03:01.4]} 35... Rxa7 {[%clk
0:04:07.1]} 36. Rxa7 {[%clk 0:03:01.3]} 36... g5 {[%clk 0:04:05.2]} 37. a4
{[%clk 0:02:57.3]} 37... h5 {[%clk 0:04:03.3]} 38. a5 {[%clk 0:02:55.7]} 38...
bxa5 {[%clk 0:04:02.6]} 39. Rxa5 {[%clk 0:02:54.8]} 39... Rb3 {[%clk 0:03:59]}
40. f3 {[%clk 0:02:50.6]} 40... h4 {[%clk 0:03:57.7]} 41. Ra2 {[%clk 0:02:45.9]}
41... Ke5 {[%clk 0:03:56.1]} 42. Ra5+ {[%clk 0:02:43.9]} 42... Kf4 {[%clk
0:03:55]} 43. e5 {[%clk 0:02:34.8]} 43... Rb2+ {[%clk 0:03:53.6]} 44. Kg1 {[%clk
0:02:32.2]} 44... Kg3 {[%clk 0:03:52.8]} 45. Kf1 {[%clk 0:02:29.6]} 45... Kxf3
{[%clk 0:03:52]} 46. Ra3+ {[%clk 0:02:27.6]} 46... Kf4 {[%clk 0:03:51.4]} 0-1

[Event "Live Chess"]
[Site "Chess.com"]
[Date "2023.05.21"]
[Round "-"]
[White "GMHarry-youtube"]
[Black "JoeyCage"]
[Result "1-0"]
[WhiteElo "2022"]
[BlackElo "2308"]
[TimeControl "300"]
[EndTime "16:09:45 PDT"]
[Termination "GMHarry-youtube won by checkmate"]

1. e4 {[%clk 0:04:58.2]} 1... c5 {[%clk 0:04:58.7]} 2. Nf3 {[%clk 0:04:57.4]}
2... Nc6 {[%clk 0:04:57.9]} 3. Bb5 {[%clk 0:04:56.6]} 3... g6 {[%clk 0:04:56.5]}
4. O-O {[%clk 0:04:55.6]} 4... Bg7 {[%clk 0:04:53.7]} 5. c3 {[%clk 0:04:55]}
5... Nf6 {[%clk 0:04:51.4]} 6. Re1 {[%clk 0:04:53.4]} 6... O-O {[%clk
0:04:49.8]} 7. d4 {[%clk 0:04:52.5]} 7... cxd4 {[%clk 0:04:47.8]} 8. cxd4 {[%clk
0:04:52.4]} 8... a6 {[%clk 0:04:47.1]} 9. Bd3 {[%clk 0:04:48.8]} 9... d6 {[%clk
0:04:45]} 10. Nc3 {[%clk 0:04:47.4]} 10... b5 {[%clk 0:04:43.8]} 11. a3 {[%clk
0:04:46.4]} 11... Bb7 {[%clk 0:04:42.5]} 12. Bf4 {[%clk 0:04:39.1]} 12... Rc8
{[%clk 0:04:40.7]} 13. h3 {[%clk 0:04:36.8]} 13... Nxd4 {[%clk 0:04:36.7]} 14.
Nxd4 {[%clk 0:04:29.5]} 14... e5 {[%clk 0:04:35.3]} 15. Ndxb5 {[%clk 0:04:24.8]}
15... exf4 {[%clk 0:04:30.7]} 16. Nd4 {[%clk 0:04:19.9]} 16... d5 {[%clk
0:04:29.3]} 17. e5 {[%clk 0:04:12.6]} 17... Nd7 {[%clk 0:04:26.9]} 18. e6 {[%clk
0:04:12]} 18... Nc5 {[%clk 0:04:22.4]} 19. e7 {[%clk 0:04:09.5]} 19... Qd6
{[%clk 0:04:14.8]} 20. exf8=Q+ {[%clk 0:04:08.6]} 20... Rxf8 {[%clk 0:04:12.4]}
21. Bc2 {[%clk 0:04:04.5]} 21... g5 {[%clk 0:04:07.7]} 22. f3 {[%clk 0:04:02.7]}
22... h5 {[%clk 0:04:05.9]} 23. b4 {[%clk 0:04:00.8]} 23... Ne6 {[%clk
0:04:02.3]} 24. Nxe6 {[%clk 0:03:58.4]} 24... fxe6 {[%clk 0:04:00.7]} 25. Qd3
{[%clk 0:03:57.4]} 25... g4 {[%clk 0:03:58.7]} 26. Qh7+ {[%clk 0:03:56]} 26...
Kf7 {[%clk 0:03:57.5]} 27. Qg6+ {[%clk 0:03:55.5]} 27... Kg8 {[%clk 0:03:56.2]}
28. Rxe6 {[%clk 0:03:50.4]} 28... Qd7 {[%clk 0:03:53.5]} 29. Rae1 {[%clk
0:03:39.9]} 29... gxh3 {[%clk 0:03:46.6]} 30. Re7 {[%clk 0:03:37.9]} 30... Rf7
{[%clk 0:03:36.7]} 31. Rxd7 {[%clk 0:03:34.2]} 31... Rxd7 {[%clk 0:03:34.6]} 32.
Re8# {[%clk 0:03:32.3]} 1-0

[Event "Live Chess"]
[Site "Chess.com"]
[Date "2023.05.21"]
[Round "-"]
[White "flyingpuffins"]
[Black "mattihelenius2"]
[Result "1-0"]
[WhiteElo "1936"]
[BlackElo "489"]
[TimeControl "300"]
[EndTime "16:09:51 PDT"]
[Termination "flyingpuffins won by checkmate"]

1. d4 {[%clk 0:04:56.5]} 1... d5 {[%clk 0:04:58.1]} 2. e4 {[%clk 0:04:55.5]}
2... e6 {[%clk 0:04:55.6]} 3. e5 {[%clk 0:04:54.5]} 3... Nc6 {[%clk 0:04:53.1]}
4. c3 {[%clk 0:04:53.6]} 4... Be7 {[%clk 0:04:45.3]} 5. f4 {[%clk 0:04:51.4]}
5... f6 {[%clk 0:04:31.7]} 6. Nf3 {[%clk 0:04:41.3]} 6... fxe5 {[%clk
0:04:29.5]} 7. Nxe5 {[%clk 0:04:39.3]} 7... Nf6 {[%clk 0:04:22]} 8. Nxc6 {[%clk
0:04:35.8]} 8... bxc6 {[%clk 0:04:14.5]} 9. Bd3 {[%clk 0:04:35.4]} 9... Ne4
{[%clk 0:04:09]} 10. Bxe4 {[%clk 0:04:26.4]} 10... dxe4 {[%clk 0:04:08.9]} 11.
O-O {[%clk 0:04:25.8]} 11... Rf8 {[%clk 0:03:52.7]} 12. Qe2 {[%clk 0:04:20.9]}
12... Ba6 {[%clk 0:03:43.3]} 13. Qxa6 {[%clk 0:04:18.8]} 13... Qc8 {[%clk
0:03:32.5]} 14. Qxc6+ {[%clk 0:04:15.9]} 14... Kd8 {[%clk 0:03:25.9]} 15. Nd2
{[%clk 0:04:07.5]} 15... g6 {[%clk 0:03:22.3]} 16. Nxe4 {[%clk 0:04:04.6]} 16...
Qd7 {[%clk 0:03:19.7]} 17. Qxa8+ {[%clk 0:04:02.7]} 17... Qc8 {[%clk 0:03:17.4]}
18. Qc6 {[%clk 0:04:01.1]} 18... Bh4 {[%clk 0:03:05.7]} 19. Nc5 {[%clk
0:03:58.6]} 19... Ke7 {[%clk 0:02:59]} 20. Be3 {[%clk 0:03:51]} 20... e5 {[%clk
0:02:47.1]} 21. fxe5 {[%clk 0:03:44.3]} 21... Rxf1+ {[%clk 0:02:44.6]} 22. Rxf1
{[%clk 0:03:42.5]} 22... Qg4 {[%clk 0:02:31.5]} 23. Qxc7+ {[%clk 0:03:37.8]}
23... Ke8 {[%clk 0:02:10]} 24. Qb8+ {[%clk 0:03:28]} 24... Ke7 {[%clk
0:02:07.8]} 25. Qd6+ {[%clk 0:03:26.6]} 25... Ke8 {[%clk 0:02:02.6]} 26. Rf8#
{[%clk 0:03:26.5]} 1-0

[Event "Live Chess"]
[Site "Chess.com"]
[Date "2023.05.21"]
[Round "-"]
[White "fso"]
[Black "LiamBellwood"]
[Result "1-0"]
[WhiteElo "2238"]
[BlackElo "2060"]
[TimeControl "300"]
[EndTime "16:10:03 PDT"]
[Termination "fso won by resignation"]

1. e4 {[%clk 0:04:56.4]} 1... e6 {[%clk 0:04:59.9]} 2. d4 {[%clk 0:04:51.9]}
2... d5 {[%clk 0:04:57]} 3. Nd2 {[%clk 0:04:51.1]} 3... Nc6 {[%clk 0:04:55.6]}
4. Ngf3 {[%clk 0:04:41.1]} 4... Nf6 {[%clk 0:04:54.3]} 5. exd5 {[%clk
0:04:38.6]} 5... exd5 {[%clk 0:04:50.4]} 6. Bb5 {[%clk 0:04:32.9]} 6... Bd6
{[%clk 0:04:49.2]} 7. O-O {[%clk 0:04:30.2]} 7... O-O {[%clk 0:04:45]} 8. h3
{[%clk 0:04:29.1]} 8... Bf5 {[%clk 0:04:38]} 9. Re1 {[%clk 0:03:58]} 9... Nb4
{[%clk 0:04:28]} 10. Ba4 {[%clk 0:03:55.1]} 10... c5 {[%clk 0:04:16.6]} 11. a3
{[%clk 0:03:52.5]} 11... Nc6 {[%clk 0:04:15.8]} 12. dxc5 {[%clk 0:03:40.5]}
12... Bxc5 {[%clk 0:04:15.4]} 13. b4 {[%clk 0:03:33.8]} 13... Bb6 {[%clk
0:03:59.4]} 14. Bb2 {[%clk 0:03:30]} 14... Qd6 {[%clk 0:03:28.1]} 15. Nb3 {[%clk
0:03:17.5]} 15... Bxh3 {[%clk 0:03:16.5]} 16. Nc5 {[%clk 0:02:39.3]} 16... Bg4
{[%clk 0:02:06.1]} 17. Bxc6 {[%clk 0:02:08.8]} 17... bxc6 {[%clk 0:01:19.3]} 18.
Be5 {[%clk 0:02:04]} 18... Qd8 {[%clk 0:01:18.6]} 19. Qd4 {[%clk 0:01:55]} 19...
Ne4 {[%clk 0:00:59.4]} 20. Bxg7 {[%clk 0:01:46.4]} 20... Bxf3 {[%clk 0:00:41]}
21. Bxf8 {[%clk 0:01:18.6]} 21... Qg5 {[%clk 0:00:38.2]} 22. Qg7+ {[%clk
0:00:44.9]} 22... Qxg7 {[%clk 0:00:36.6]} 23. Bxg7 {[%clk 0:00:44.8]} 23... Kxg7
{[%clk 0:00:28.1]} 24. gxf3 {[%clk 0:00:42.3]} 24... Nxc5 {[%clk 0:00:27.6]} 25.
bxc5 {[%clk 0:00:40.6]} 25... Bxc5 {[%clk 0:00:27.5]} 26. a4 {[%clk 0:00:36.9]}
26... Rb8 {[%clk 0:00:26.4]} 27. Rab1 {[%clk 0:00:35.6]} 27... Bb4 {[%clk
0:00:19.5]} 28. Re7 {[%clk 0:00:28.3]} 28... a5 {[%clk 0:00:16.9]} 29. Rc7
{[%clk 0:00:25.5]} 29... Rb6 {[%clk 0:00:14.4]} 30. c3 {[%clk 0:00:21.8]} 30...
Bc5 {[%clk 0:00:11.7]} 31. Rxb6 {[%clk 0:00:20.4]} 31... Bxb6 {[%clk 0:00:11.6]}
32. Rxc6 {[%clk 0:00:20.1]} 32... Bd8 {[%clk 0:00:11.1]} 33. Rd6 {[%clk
0:00:19.2]} 33... Bc7 {[%clk 0:00:09.8]} 34. Rxd5 {[%clk 0:00:18.6]} 34... Kf6
{[%clk 0:00:09.1]} 35. Rc5 {[%clk 0:00:17.9]} 35... Bd8 {[%clk 0:00:08.1]} 36.
Kf1 {[%clk 0:00:16.4]} 36... Ke6 {[%clk 0:00:07.3]} 37. Ke2 {[%clk 0:00:16.3]}
37... Kd6 {[%clk 0:00:06.7]} 38. Rc4 {[%clk 0:00:15.8]} 38... Kd5 {[%clk
0:00:05.8]} 39. Rd4+ {[%clk 0:00:15]} 1-0

[Event "Live Chess"]
[Site "Chess.com"]
[Date "2023.05.21"]
[Round "-"]
[White "CeladonFish"]
[Black "AbilifyXL"]
[Result "0-1"]
[WhiteElo "1126"]
[BlackElo "1965"]
[TimeControl "300"]
[EndTime "16:10:04 PDT"]
[Termination "AbilifyXL won by resignation"]

1. d4 {[%clk 0:04:58.6]} 1... d5 {[%clk 0:04:59.5]} 2. c4 {[%clk 0:04:57.3]}
2... c6 {[%clk 0:04:59.4]} 3. Nc3 {[%clk 0:04:55.5]} 3... Nf6 {[%clk 0:04:58.9]}
4. Bf4 {[%clk 0:04:53.5]} 4... a6 {[%clk 0:04:58.4]} 5. Nf3 {[%clk 0:04:52.2]}
5... b5 {[%clk 0:04:57.9]} 6. cxd5 {[%clk 0:04:49.4]} 6... cxd5 {[%clk
0:04:57.8]} 7. e3 {[%clk 0:04:48.5]} 7... Bg4 {[%clk 0:04:57]} 8. a4 {[%clk
0:04:44.4]} 8... b4 {[%clk 0:04:55.5]} 9. Na2 {[%clk 0:04:38.1]} 9... e6 {[%clk
0:04:54.3]} 10. Qb3 {[%clk 0:04:19.6]} 10... Bxf3 {[%clk 0:04:47.1]} 11. gxf3
{[%clk 0:04:17.7]} 11... Nc6 {[%clk 0:04:43.7]} 12. Rc1 {[%clk 0:04:12.5]} 12...
Qb6 {[%clk 0:04:10.3]} 13. Bd3 {[%clk 0:03:48.9]} 13... Be7 {[%clk 0:04:08.1]}
14. O-O {[%clk 0:03:46.3]} 14... O-O {[%clk 0:04:06.4]} 15. Rc2 {[%clk
0:03:42.6]} 15... Na5 {[%clk 0:03:56.1]} 0-1

[Event "Live Chess"]
[Site "Chess.com"]
[Date "2023.05.21"]
[Round "-"]
[White "toog"]
[Black "Singapourfeuj"]
[Result "0-1"]
[WhiteElo "2582"]
[BlackElo "2204"]
[TimeControl "300"]
[EndTime "16:10:44 PDT"]
[Termination "Singapourfeuj won by resignation"]

1. e4 {[%clk 0:04:56.5]} 1... e6 {[%clk 0:04:59]} 2. d4 {[%clk 0:04:55.1]} 2...
d5 {[%clk 0:04:58.2]} 3. Nd2 {[%clk 0:04:53.4]} 3... Be7 {[%clk 0:04:56.3]} 4.
Ngf3 {[%clk 0:04:51.8]} 4... c5 {[%clk 0:04:55.3]} 5. exd5 {[%clk 0:04:46.5]}
5... cxd4 {[%clk 0:04:54.2]} 6. Nxd4 {[%clk 0:04:38]} 6... Qxd5 {[%clk
0:04:52.9]} 7. Nb5 {[%clk 0:04:37.1]} 7... Na6 {[%clk 0:04:49.7]} 8. Nc3 {[%clk
0:04:36]} 8... Qe5+ {[%clk 0:04:47.9]} 9. Be2 {[%clk 0:04:33.9]} 9... Bd7 {[%clk
0:04:47.1]} 10. Nc4 {[%clk 0:04:32.7]} 10... Qc7 {[%clk 0:04:43.2]} 11. O-O
{[%clk 0:04:31.1]} 11... Bc6 {[%clk 0:04:41.2]} 12. Be3 {[%clk 0:04:26.9]} 12...
Rd8 {[%clk 0:04:39.3]} 13. Qc1 {[%clk 0:04:25.5]} 13... Nf6 {[%clk 0:04:38]} 14.
Bf4 {[%clk 0:04:23.5]} 14... Qc8 {[%clk 0:04:35.8]} 15. a4 {[%clk 0:04:21.3]}
15... O-O {[%clk 0:04:33.3]} 16. Nb5 {[%clk 0:04:18.2]} 16... Nd5 {[%clk
0:04:31.4]} 17. Bg3 {[%clk 0:04:16.6]} 17... f5 {[%clk 0:04:20.6]} 18. Nxa7
{[%clk 0:04:13.6]} 18... Qa8 {[%clk 0:04:17]} 19. Nxc6 {[%clk 0:04:11.9]} 19...
bxc6 {[%clk 0:04:16.1]} 20. Be5 {[%clk 0:04:10.9]} 20... Nc5 {[%clk 0:04:13.6]}
21. a5 {[%clk 0:04:08.2]} 21... Ne4 {[%clk 0:04:08.8]} 22. Bf3 {[%clk 0:04:06]}
22... c5 {[%clk 0:04:05.7]} 23. Bxe4 {[%clk 0:04:02.5]} 23... fxe4 {[%clk
0:04:04.7]} 24. Nb6 {[%clk 0:04:02]} 24... Qc6 {[%clk 0:03:59.2]} 25. Nxd5
{[%clk 0:03:54.3]} 25... exd5 {[%clk 0:03:58.2]} 26. a6 {[%clk 0:03:53.3]} 26...
Rf5 {[%clk 0:03:55.8]} 27. Bg3 {[%clk 0:03:49.8]} 27... d4 {[%clk 0:03:54.3]}
28. a7 {[%clk 0:03:49]} 28... Ra8 {[%clk 0:03:53.3]} 29. Bb8 {[%clk 0:03:46]}
29... Bd6 {[%clk 0:03:51.9]} 30. Bxd6 {[%clk 0:03:44.6]} 30... Qxd6 {[%clk
0:03:51]} 31. Qd2 {[%clk 0:03:41.3]} 31... Rf7 {[%clk 0:03:47.7]} 32. Qe2 {[%clk
0:03:36.5]} 32... Qe6 {[%clk 0:03:42.8]} 33. Ra5 {[%clk 0:03:30.9]} 33... Rfxa7
{[%clk 0:03:38.5]} 34. Rxc5 {[%clk 0:03:29.4]} 34... h6 {[%clk 0:03:33.3]} 35.
Qc4 {[%clk 0:03:25]} 35... Qxc4 {[%clk 0:03:27.7]} 36. Rxc4 {[%clk 0:03:24.9]}
36... Rd7 {[%clk 0:03:24.5]} 37. Rd1 {[%clk 0:03:22.7]} 37... d3 {[%clk
0:03:23]} 38. cxd3 {[%clk 0:03:21.5]} 38... Rxd3 {[%clk 0:03:22]} 39. Re1 {[%clk
0:03:20.7]} 39... Ra2 {[%clk 0:03:18]} 40. Rcxe4 {[%clk 0:03:13.9]} 40... Rxb2
{[%clk 0:03:16.8]} 41. g3 {[%clk 0:03:13.1]} 41... Rdd2 {[%clk 0:03:14.3]} 42.
Rf4 {[%clk 0:03:12.1]} 42... Kh7 {[%clk 0:03:12.3]} 43. Kg2 {[%clk 0:03:11.3]}
43... Ra2 {[%clk 0:03:10.3]} 44. Re7 {[%clk 0:03:09.9]} 44... Re2 {[%clk
0:03:06.3]} 45. h4 {[%clk 0:03:08.5]} 45... Rxe7 {[%clk 0:03:05]} 0-1

[Event "Live Chess"]
[Site "Chess.com"]
[Date "2023.05.21"]
[Round "-"]
[White "HD_IN4k"]
[Black "yeetpizza74"]
[Result "1-0"]
[WhiteElo "404"]
[BlackElo "458"]
[TimeControl "300"]
[EndTime "16:10:48 PDT"]
[Termination "HD_IN4k won by checkmate"]

1. d4 {[%clk 0:04:56]} 1... e5 {[%clk 0:04:57.6]} 2. c3 {[%clk 0:04:49.8]} 2...
exd4 {[%clk 0:04:48.7]} 3. cxd4 {[%clk 0:04:48.4]} 3... d5 {[%clk 0:04:47.5]} 4.
f3 {[%clk 0:04:45.8]} 4... Nc6 {[%clk 0:04:45.1]} 5. e4 {[%clk 0:04:43.6]} 5...
dxe4 {[%clk 0:04:39.2]} 6. fxe4 {[%clk 0:04:31.4]} 6... Nxd4 {[%clk 0:04:37.2]}
7. Be3 {[%clk 0:04:31.1]} 7... Bb4+ {[%clk 0:04:21.2]} 8. Nc3 {[%clk 0:04:24.6]}
8... c5 {[%clk 0:04:06.8]} 9. Qa4+ {[%clk 0:04:11.4]} 9... Bd7 {[%clk
0:03:57.6]} 10. Qd1 {[%clk 0:03:55.1]} 10... Nf6 {[%clk 0:03:51.8]} 11. a3
{[%clk 0:03:53.1]} 11... Bxc3+ {[%clk 0:03:48.9]} 12. bxc3 {[%clk 0:03:51.4]}
12... Bg4 {[%clk 0:03:33.9]} 13. Be2 {[%clk 0:03:42.8]} 13... Bxe2 {[%clk
0:03:30.1]} 14. Nxe2 {[%clk 0:03:41]} 14... Nxe2 {[%clk 0:03:26.1]} 15. Qxe2
{[%clk 0:03:39.6]} 15... Nxe4 {[%clk 0:03:20.8]} 16. Bxc5 {[%clk 0:03:37.5]}
16... Rc8 {[%clk 0:03:12.2]} 17. Qxe4+ {[%clk 0:03:35.8]} 17... Kd7 {[%clk
0:03:01.7]} 18. Qd5+ {[%clk 0:03:22]} 18... Ke8 {[%clk 0:02:55.6]} 19. Qxd8+
{[%clk 0:03:19.6]} 19... Kxd8 {[%clk 0:02:54.7]} 20. Rd1+ {[%clk 0:03:16.2]}
20... Ke8 {[%clk 0:02:51.9]} 21. Bb4 {[%clk 0:03:11.2]} 21... b6 {[%clk
0:02:47.8]} 22. O-O {[%clk 0:03:09.9]} 22... a5 {[%clk 0:02:42.8]} 23. Bd6
{[%clk 0:03:06.4]} 23... Kd7 {[%clk 0:02:35.8]} 24. Be5+ {[%clk 0:03:00.3]}
24... Ke6 {[%clk 0:02:33.6]} 25. Bxg7 {[%clk 0:02:59.4]} 25... Rhd8 {[%clk
0:02:31.4]} 26. Rfe1+ {[%clk 0:02:56.9]} 26... Kf5 {[%clk 0:02:29.1]} 27. Rf1+
{[%clk 0:02:54]} 27... Ke6 {[%clk 0:02:26.8]} 28. Rde1+ {[%clk 0:02:51.9]} 28...
Kd5 {[%clk 0:02:23.1]} 29. Rf5+ {[%clk 0:02:48.9]} 29... Kc6 {[%clk 0:02:20.2]}
30. Rf6+ {[%clk 0:02:46.4]} 30... Rd6 {[%clk 0:02:18.5]} 31. Rxd6+ {[%clk
0:02:44.5]} 31... Kxd6 {[%clk 0:02:17.5]} 32. Rd1+ {[%clk 0:02:42.8]} 32... Kc5
{[%clk 0:02:16.3]} 33. Bd4+ {[%clk 0:02:35.9]} 33... Kc4 {[%clk 0:02:14.8]} 34.
Bxb6 {[%clk 0:02:32]} 34... Kxc3 {[%clk 0:02:06.5]} 35. Rc1+ {[%clk 0:02:28.6]}
35... Kb3 {[%clk 0:02:05]} 36. Rxc8 {[%clk 0:02:28]} 36... Kxa3 {[%clk
0:02:03.7]} 37. Rf8 {[%clk 0:02:26.4]} 37... a4 {[%clk 0:02:02.5]} 38. Rxf7
{[%clk 0:02:25.8]} 38... Kb4 {[%clk 0:02:02.1]} 39. Rxh7 {[%clk 0:02:24.8]}
39... a3 {[%clk 0:02:01.7]} 40. Ra7 {[%clk 0:02:22]} 40... Kb3 {[%clk
0:01:59.9]} 41. Bd4 {[%clk 0:02:15]} 41... a2 {[%clk 0:01:55.1]} 42. Bf6 {[%clk
0:02:12.3]} 42... a1=N {[%clk 0:01:35]} 43. Bxa1 {[%clk 0:02:06.2]} 43... Kc2
{[%clk 0:01:33.3]} 44. g4 {[%clk 0:02:03.4]} 44... Kd3 {[%clk 0:01:32.2]} 45. g5
{[%clk 0:02:02.1]} 45... Ke2 {[%clk 0:01:31.8]} 46. g6 {[%clk 0:02:02]} 46...
Kf3 {[%clk 0:01:30.7]} 47. g7 {[%clk 0:02:01.9]} 47... Kg4 {[%clk 0:01:29.7]}
48. g8=Q+ {[%clk 0:02:01.8]} 48... Kh3 {[%clk 0:01:28.7]} 49. Rh7# {[%clk
0:01:59.4]} 1-0

[Event "Live Chess"]
[Site "Chess.com"]
[Date "2023.05.21"]
[Round "-"]
[White "Jo1ts"]
[Black "AlanPaling"]
[Result "0-1"]
[WhiteElo "778"]
[BlackElo "1313"]
[TimeControl "300"]
[EndTime "16:11:22 PDT"]
[Termination "AlanPaling won by resignation"]

1. d4 {[%clk 0:04:57]} 1... e5 {[%clk 0:04:58.5]} 2. dxe5 {[%clk 0:04:54.1]}
2... Nc6 {[%clk 0:04:57.4]} 3. Nf3 {[%clk 0:04:48.9]} 3... Qe7 {[%clk
0:04:56.3]} 4. Nc3 {[%clk 0:04:42]} 4... Nxe5 {[%clk 0:04:52.7]} 5. Nxe5 {[%clk
0:04:37.9]} 5... Qxe5 {[%clk 0:04:50.5]} 6. a3 {[%clk 0:04:34.8]} 6... Bc5
{[%clk 0:04:41.4]} 7. f3 {[%clk 0:04:20.3]} 7... d6 {[%clk 0:04:39]} 8. e4
{[%clk 0:04:07.7]} 8... f5 {[%clk 0:04:36.4]} 9. Bd3 {[%clk 0:03:59.9]} 9... Nf6
{[%clk 0:04:32]} 10. Kf1 {[%clk 0:03:54.7]} 10... Qd4 {[%clk 0:04:23.4]} 11. Qe2
{[%clk 0:03:49.8]} 0-1